Cogmind - Beta 13 @@@ ROGUE MODE // 2024.05.15 @ 14:44:42 Player: SohrinSohtel Result: Self-destructed Performance ------------- Evolutions (1) 500 Regions Visited (2) 400 Robots Destroyed (24) 120 Value Destroyed (602) 602 Prototype IDs (0) 0 Alien Tech Used (0) 0 Bonus (0) 0 TOTAL SCORE: 1622 Bonus ------- None Cogmind --------- Core Integrity 110/400 Matter 143/300 Energy 62/100 System Corruption 0% Temperature Cool (0) Movement Core (100) Ox1 Location -9/Materials Parts ------- > --- POWER (1) -------- (None) > --- PROPULSION (3) --- (None) > --- UTILITY (3) ------ Small Storage Unit Structural Scanner > --- WEAPON (2) ------- (None) > --- INVENTORY (8) ---- Visual Processing Unit Signal Interpreter Seismic Detector ECM Suite Peak State ------------ > --- POWER ------------ Light Nuclear Core > --- PROPULSION ------- Aluminum Leg Aluminum Leg > --- UTILITY ---------- Small Storage Unit Structural Scanner Sensor Array > --- WEAPON ----------- Assault Rifle Heavy Assault Rifle > --- INVENTORY -------- Visual Processing Unit Signal Interpreter Seismic Detector ECM Suite Hacking Suite Small Laser Datajack [Rating: 12] Favorites ----------- Power Light Nuclear Core Engine Ion Engine Power Core Light Nuclear Core Propulsion Aluminum Leg Treads Light Treads Leg Aluminum Leg Utility Small Storage Unit Device Structural Scanner Storage Small Storage Unit Protection Hardened Light Armor Plating Weapon Small Laser Energy Gun Small Laser Ballistic Gun Assault Rifle Special Melee Weapon Datajack Build | -11 -10 -9 ------- Run | Yrd Mat Mat Slots Evolved 2 | . . 2 Power . | . . . Propulsion 1 | . . 1 Utility 1 | . . 1 Weapon . | . . . Parts Attached 35 | 7 21 7 Power 3 | 1 2 . Engine 2 | 1 1 . Core 1 | . 1 . Reactor . | . . . Propulsion 8 | 2 5 1 Treads 2 | . 2 . Leg 6 | 2 3 1 Wheel . | . . . Hover . | . . . Flight . | . . . Utility 12 | 2 8 2 Device 8 | 1 5 2 Storage 1 | 1 . . Processor . | . . . Hackware . | . . . Protection 3 | . 3 . Artifact . | . . . Weapon 12 | 2 6 4 Energy Gun 6 | 2 3 1 Energy Cannon . | . . . Ballistic Gun 5 | . 3 2 Ballistic Cannon . | . . . Launcher . | . . . Special Weapon . | . . . Impact Weapon . | . . . Slashing Weapon . | . . . Piercing Weapon . | . . . Special Melee Weapon 1 | . . 1 Unidentified Prototypes . | . . . Parts Lost 11 | . 3 8 Power 2 | . 1 1 Propulsion 5 | . 2 3 Utility 1 | . . 1 Weapon 3 | . . 3 Highest Loss Streak 8 | . 3 8 To Critical Strikes . | . . . Average Slot Usage (%) 95 | . 98 83 Engine 6 | . 7 . Core 6 | . 5 9 Treads 3 | . 4 . Leg 22 | . 23 21 Device 8 | . 5 21 Storage 13 | . 14 11 Protection 6 | . 8 . Energy Gun 16 | . 20 2 Ballistic Gun 9 | . 7 17 Naked Turns . | . . . Heaviest Build 19 | 15 19 17 Greatest Support 40 | 20 40 20 Greatest Overweight (x) 4 | . 4 2 Average Overweight (x) . | . . . Largest Inventory Capacity 8 | 8 8 8 Average Capacity 7 | 7 8 8 Most Carried 8 | 3 8 7 Average Carried 6 | 1 6 6 Final Capacity 8 | 8 8 8 Final Carried 7 | 3 7 4 Class Distribution -------------------- 53% | Scavenger-Mutant 46% | Mutant Dominant Class ---------------- Mutant | -10/Materials Scavenger-Mutant | -9/Materials Resources | -11 -10 -9 ----------- Run | Yrd Mat Mat Matter Collected 512 | 270 242 . Remotely . | . . . Salvage Created 773 | 23 597 153 Parts 50 | 1 37 12 Haulers Intercepted 1 | . 1 . Recyclers Shooed . | . . . Parts Field Recycled . | . . . Retrieved Matter . | . . . Parts Self-Destructed . | . . . Prevented . | . . . Kills | -11 -10 -9 ------- Run | Yrd Mat Mat Combat Hostiles Destroyed 18 | . 13 5 Guns 18 | . 13 5 Classes Destroyed 7 | 1 5 1 Tunneler 1 | 1 . . Hauler 1 | . 1 . Operator 1 | . 1 . Watcher 3 | . 3 . Swarmer 5 | . 2 3 Grunt 12 | . 11 1 Sentry 1 | . . 1 Best Kill Streak 4 | 1 2 4 Combat Bots Only 4 | . 2 4 Max Kills in Single Turn 1 | 1 1 1 Gunslinging . | . . . Exploded . | . . . Melee . | . . . Uniques/NPCs Destroyed . | . . . Combat | -11 -10 -9 -------- Run | Yrd Mat Mat Hostile Shots Fired 241 | . 134 107 Missed 51 | . 33 18 Damage Taken 2118 | . 1123 995 Core 466 | . 176 290 Absorbed by Shields . | . . . Core Remaining (%) 64 | 100 29 . Volleys Fired 99 | 1 73 25 Largest 2 | 2 2 2 Hottest 100 | 100 100 43 Shots Fired 180 | 2 135 43 Gun 180 | 2 135 43 Cannon . | . . . Launcher . | . . . Special . | . . . Kinetic 100 | . 63 37 Thermal 80 | 2 72 6 Explosive . | . . . Electromagnetic . | . . . Robot Hit Streak 12 | 1 12 7 Robot Miss Streak 8 | . 8 5 Penetration Max . | . . . Secondary Targets 3 | . 2 1 Max Gunslinging Chain 1 | . 1 1 Shots Hit Robots 117 | 1 85 31 Core Hits 46 | 1 35 10 Critical Kills . | . . . Critical Parts Destroyed . | . . . Critical Strikes 4 | . 4 . Burn 4 | . 4 . Melee Attacks . | . . . Impact . | . . . Slashing . | . . . Piercing . | . . . Sneak Attacks . | . . . Combat Hostiles . | . . . Follow-up Attacks . | . . . Damage Inflicted 1316 | 13 921 382 Guns 1308 | 13 913 382 Cannons . | . . . Explosions . | . . . Melee . | . . . Ramming 8 | . 8 . Kinetic 686 | . 359 327 Thermal 622 | 13 554 55 Explosive . | . . . Electromagnetic . | . . . Impact . | . . . Slashing . | . . . Piercing . | . . . Highest Corruption 2 | . 2 . Average Corruption 2 | . 2 . Corruption Purged . | . . . Corruption Blocked . | . . . Effects 6 | . 6 . Message Errors 1 | . 1 . Matter Fused 1 | . 1 . Heat Flow Errors 1 | . 1 . Energy Discharges 2 | . 2 . Data Loss (minor) 1 | . 1 . Overload Shots . | . . . Overflow Damage . | . . . Projectiles . | . . . Explosions . | . . . Melee . | . . . Knockbacks . | . . . Impact . | . . . Kinetic . | . . . Secondary . | . . . Self-Inflicted Damage . | . . . Shots . | . . . Rammed 3 | . 3 . Targets Rammed 3 | . 3 . Kicked . | . . . Crushed . | . . . Highest Temperature 440 | 39 440 14 Average Temperature 100 | 20 107 6 Received Heat Transfer 897 | . 570 327 Effects 5 | . 5 . Interference 4 | . 4 . Damage (major) 1 | . 1 . Siege Activations . | . . . Robots Corrupted . | . . . Combat Hostiles . | . . . Parts Fried . | . . . Impact Corruptions . | . . . Robots Melted . | . . . Combat Hostiles . | . . . Parts Melted 3 | . 3 . Heat Transferred 1944 | 37 1782 125 Parts Sabotaged . | . . . Parts Stolen . | . . . Parts Stripped . | . . . Power Chain Reactions . | . . . Alert | -11 -10 -9 ------- Run | Yrd Mat Mat Peak Influence 211 | 5 211 94 Initial 3 | . 3 . Average 43 | 1 53 17 Maximum Alert Level 1 | . 1 . Low Security (%) 94 | 100 92 100 Level 1 5 | . 7 . Level 2 . | . . . Level 3 . | . . . Level 4 . | . . . Level 5 . | . . . High Security . | . . . Max Security . | . . . Squads Dispatched 6 | . 4 2 Investigation 1 | . 1 . Extermination . | . . . Reinforcement 5 | . 3 2 Assault . | . . . Garrison . | . . . Intercept . | . . . Searches Triggered . | . . . Construction Impeded . | . . . Haulers Reinforced . | . . . Active Scanning Responses . | . . . Cargo Convoy Interrupts . | . . . Stealth | -11 -10 -9 --------- Run | Yrd Mat Mat Distress Signals 2 | . 1 1 Communications Jammed . | . . . Distress Signals . | . . . Times Spotted 32 | . 20 12 Peak Tracking Total 9 | . 5 9 Tactical Retreats . | . . . Traps | -11 -10 -9 ------- Run | Yrd Mat Mat Traps Triggered 2 | . 2 . Indirectly . | . . . Trap Hack Attempts . | . . . Triggered . | . . . Disarmed . | . . . Reprogrammed . | . . . Reused . | . . . Traps Extracted . | . . . Installed . | . . . Triggered . | . . . Machines | -11 -10 -9 ---------- Run | Yrd Mat Mat Machines Disabled . | . . . Max in Single Turn . | . . . Machines Repaired . | . . . Machines Dismantled . | . . . Machines Sabotaged . | . . . Overloaded Fab Kills . | . . . Hacking | -11 -10 -9 --------- Run | Yrd Mat Mat Machines Accessed 6 | . 5 1 Terminals 4 | . 3 1 Fabricators . | . . . Repair Stations . | . . . Recycling Units 2 | . 2 . Scanalyzers . | . . . Garrison Access . | . . . Total Hacks 16 | . 12 4 Successful 12 | . 10 2 Failed 4 | . 2 2 Catastrophic . | . . . Database Lockouts . | . . . Manual . | . . . Terminals 10 | . 6 4 Fabricators . | . . . Repair Stations . | . . . Recycling Units 6 | . 6 . Scanalyzers . | . . . Garrison Access . | . . . Terminal Hacks 7 | . 5 2 Record 1 | . . 1 Emergency Access Points 1 | . 1 . Unreport Threat 1 | . 1 . Dispatch Records 2 | . 1 1 Maintenance Status 1 | . 1 . Zone Layout 1 | . 1 . Fabricator Hacks . | . . . Repair Station Hacks . | . . . Recycling Unit Hacks 5 | . 5 . Report Inventory 3 | . 3 . Retrieve Components 2 | . 2 . Scanalyzer . | . . . Garrison Access Hacks . | . . . Unauthorized Hacks . | . . . Terminals . | . . . Fabricators . | . . . Repair Stations . | . . . Recycling Units . | . . . Scanalyzers . | . . . Garrison Access . | . . . Data Cores Recovered . | . . . Used . | . . . Hacking Detections 1 | . 1 . Full Trace Events . | . . . Feedback Events . | . . . Feedback Blocked . | . . . Robot Schematics Acquired . | . . . Robots Built . | . . . Authchips . | . . . Time . | . . . Total Robot Build Rating . | . . . Part Schematics Acquired . | . . . Parts Built . | . . . Authchips . | . . . Time . | . . . Total Part Build Rating . | . . . Parts Repaired . | . . . Time . | . . . Parts Recycled . | . . . Recycled Matter . | . . . Retrieved Matter . | . . . Retrieved Components 12 | . 12 . Parts Scanalyzed . | . . . Part Schematics Acquired . | . . . Parts Damaged . | . . . Bothacking | -11 -10 -9 ------------ Run | Yrd Mat Mat Used RIF Installer . | . . . Robots Hacked . | . . . Non-combat . | . . . Combat . | . . . Robot Hacks Applied . | . . . Relay Couplers Released . | . . . Fabnet Peak Effective % . | . . . Robots Rewired . | . . . Allies Hacked . | . . . Hacks Repelled . | . . . Allies | -11 -10 -9 -------- Run | Yrd Mat Mat Total Allies . | . . . Largest Group . | . . . Highest-Rated Group . | . . . Highest-Rated Ally . | . . . Total Orders . | . . . Ally Attacks . | . . . Total Damage . | . . . Kills . | . . . Allies Corrupted . | . . . Allies Melted . | . . . Intel | -11 -10 -9 ------- Run | Yrd Mat Mat Robot Analysis Total . | . . . Derelict Logs Recovered . | . . . Drone Launches . | . . . Drone Recoveries . | . . . Exploration | -11 -10 -9 ------------- Run | Yrd Mat Mat Turns Passed 1715 | 88 1281 346 Spaces Moved 968 | 58 744 166 Core 10 | 3 6 1 Treads 46 | . 46 . Legs 912 | 55 692 165 Wheels . | . . . Hover . | . . . Flight . | . . . Fastest Speed 50 | 50 120 120 Average Speed 122 | 116 123 120 Slowest Speed 250 | 120 250 150 Overloaded Moves . | . . . Propulsion Burnouts . | . . . Robots Hopped . | . . . Cave-ins Triggered . | . . . Exploration Rate (%) 38 | 4 96 15 Regions Visited 2 Branch Regions . Pre-discovered Areas . | . . . Known Exits Taken . | . . . Unknown Exits Taken 2 | 1 1 . Scrap Searched . | . . . Spaces Dug . | . . . Terrain Destroyed . | . . . Melee . | . . . Projectile . | . . . AOE . | . . . Terrain Rammed . | . . . Walls Destroyed . | . . . Machines Disabled . | . . . Actions | -11 -10 -9 --------- Run | Yrd Mat Mat Total 1319 | 73 976 270 Wait 188 | 5 115 68 Move 966 | 57 743 166 Hop . | . . . Pick Up 11 | 3 8 . Fast Attach 21 | 7 11 3 Attach 3 | . 1 2 Detach 2 | . 1 1 Swap 11 | . 9 2 Drop 15 | . 12 3 Fire 99 | 1 73 25 Melee . | . . . Ram . | . . . Kick . | . . . Crush 3 | . 3 . Escape Stasis . | . . . Rewire . | . . . Trap . | . . . Miscellaneous . | . . . Route ------- -11/Scrapyard -10/Materials (discovered 4 exits: *Mat x3 / [*Min]) -9/Materials History --------- Turn | Location | Event 4 | -11/Scrapyard | Discovered new exit (range 16) 89 | -11/Scrapyard | Entered Materials 302 | -10/Materials | Discovered new exit (range 10) 313 | -10/Materials | Build established: Mutant 375 | -10/Materials | Discovered new exit (range 16) 741 | -10/Materials | Core integrity fell below 50% 801 | -10/Materials | Lost 3 parts (1p2n) 968 | -10/Materials | Discovered new exit (range 16) 1057 | -10/Materials | Discovered new exit (range 15) 1089 | -10/Materials | Build established: Scavenger-Mutant 1370 | -10/Materials | Entered another Materials area 1370 | -9/Materials | Evolved 2 slots: Propulsion x1, Utility x1 1708 | -9/Materials | Core integrity fell below 50% 1716 | -9/Materials | Self-destructed Last Messages --------------- 01605_ K-01 Serf collects debris. 01670_ ALERT: Hostiles spotted, dispatching reinforcements to Terminal M005. 01672_ Lgt. Nuclear Core destroyed. 01674_ S-10 Pest destroyed. 01684_ Switching to secondary target: G-34 Mercenary. 01688_ R-06 Scavenger collects Flight Unit. 01689_ K-01 Serf collects debris. 01693_ G-34 Mercenary destroyed. 01693_ Aluminum Leg destroyed. 01695_ Assault Rifle destroyed. 01696_ S-10 Pest destroyed. 01698_ Hvy. Assault Rifle destroyed. 01698_ Aluminum Leg destroyed. 01700_ Acquired Aluminum Leg. 01710_ Aluminum Leg destroyed. 01714_ Sensor Array destroyed. 01714_ Sml. Laser destroyed. 01715_ Dropped Hacking Suite. 01715_ Dropped Datajack. Map ----- +----------------------------------------------------+ | ?????????????????????????????? | | ?????????????????????????????? | | ?????????????????????????????? | | ?????????????????????????????? | | ?????????????????????????????? | | ?????????????????????????????? | | ?????????????????????????????? | | ?????????????????????????????? | | ?????????????????????????????? | | ?????????????????????????????? | | ?????????????????????????????? | | ?????????????????????????????? | | ???????????????]!????????????? | | ?????????????? !!????????????? | | ????????????? ???????????? | | ????? ? # ???????????? | | ?????#+##### ????????????? | | ?????# #### ?????????????? | | ?????? ???????????????? | | ?????? * ????????????????? | | ??????Y %=??????????????????? | | ???### ##??????????????????? | | ???###[ ##??????????????????? | | ???##[* # ??????????????????? | | ???##g#### ??????????????????? | | ?####@#### ??????????????????? | | ?####s####???????????????????? | | ?## /%g ## ??????????????????? | | ?## g ## ??????????????????? | | ?## + ??????????????????? | | ?## ## ??????????????????? | | ?## ###??????????????????? | | ?### ## ???????????????????? | | ?### # ???????????????????? | | ??## ##????????????????????? | | ?### w## ???????????????????? | | ?### u## #### ????? | | ?## ##+#########+####????? | | ?## ##????? | | ?## T ^ ##????? | | ?## """ !![ # ????? | | ?## ## """ !![ # ????? | | ?#########[ """ ![[ # ????? | | ?######### # ????? | | ????????## + ????? | | ????????## * # ????? | | ????????####+######## ## ????? | | ????????## [ ##### ## ????? | | ????????## = ##?## ##?????? | | ????????##[%""" ##?## ##?????? | +----------------------------------------------------+ Best States ------------- Heat Dissipation 28 Energy Generation 14 Energy Capacity 250 Matter Stores 300 Matter Capacity 300 Sight Range 16 Robot Scan Range 14 Terrain Scan Density 10 Armor Coverage 150 Evasion (%) 55 Recoil Reduction 2 Item Schematics ----------------- None Robot Schematics ------------------ None Fabricated ------------ Nothing Alien Tech Used ----------------- None Achievements -------------- None Challenges ------------ None Game ------ Seed PowerHugeCompactor Manual? 0 Play Time 00:34:22 Cumulative 4.1 hours Start 2024.05.15 @ 13:44:45 End 2024.05.15 @ 14:44:42 Sessions 1 Manual Loads 0 Difficulty Rogue Special Mode None Game No. 3 Rogue 3 Adventurer 0 Explorer 0 Win Type - Total 0 Types 0/0/0/0/0/0/0/0/0 Lore% 0 Gallery% 5 Achievement% 5 Wizard Run 0 Options --------- Layout 1 ASCII 0 Keyboard 0 Movement Mouse Keybinds 0 Fullscreen 1 Font 16/SmallcapsGlow Map View 55x38 Zoom Use 0% Tactical HUD 1 Map Filters NONE Filters NONE Steam 1 RUN: 3a31283d-6d93-4414-b65b-055172202ea5